bitfinex-derivatives/quotes_BTCF0:USTF0_20250527
["timestamp","ask_amount","ask_price","bid_price","bid_amount"]
[1748351284812,2.15287274,109820.0,109810.0,0.27219952]
[1748351285110,2.15287274,109820.0,109810.0,0.09013692]
[1748351285312,2.15287274,109820.0,109810.0,0.27219952]
[1748351286602,1.73227274,109820.0,109810.0,0.47219952]
[1748351286813,1.95366182,109820.0,109810.0,0.47219952]
[1748351287612,1.95366182,109820.0,109810.0,0.55282894]
[1748351288416,1.86291782,109820.0,109810.0,0.55282894]
[1748351288914,1.86291782,109820.0,109810.0,0.60231049]
[1748351289117,1.86303782,109820.0,109810.0,0.60231049]
[1748351289310,2.06212874,109820.0,109810.0,0.42024789]
[1748351289707,2.06212874,109820.0,109810.0,0.60231049]
[1748351289909,1.64132874,109820.0,109810.0,0.60234208]
[1748351290115,2.06196874,109820.0,109810.0,0.60234208]
[1748351290313,2.06196874,109820.0,109810.0,0.55282894]
[1748351290513,2.14680269,109820.0,109810.0,0.55282894]
[1748351290919,2.14680269,109820.0,109810.0,0.47219952]
[1748351292310,2.14680269,109820.0,109810.0,0.29013692]
[1748351292515,2.20358527,109820.0,109810.0,0.29013692]
[1748351293418,2.20358527,109820.0,109810.0,0.47219952]
[1748351294019,2.20358527,109820.0,109810.0,0.29013692]
[1748351295820,2.20318527,109820.0,109810.0,0.29013692]
[1748351298328,2.20318527,109820.0,109810.0,0.37076634]
[1748351298530,2.14640269,109820.0,109810.0,0.09013692]
[1748351298722,2.14640269,109820.0,109810.0,0.17076634]
[1748351299426,2.14640269,109820.0,109810.0,0.22033379]
[1748351299623,2.17760269,109820.0,109810.0,0.22033379]
[1748351301216,2.17760269,109820.0,109810.0,0.22035222]
[1748351302331,2.17760269,109820.0,109810.0,0.1397228]
[1748351302735,2.17803841,109820.0,109810.0,0.22091596]
[1748351303634,1.87091035,109820.0,109810.0,0.1397228]
[1748351303838,2.20520068,109820.0,109810.0,0.1397228]
[1748351304735,2.20520068,109820.0,109810.0,0.22096531]
[1748351305431,2.20520068,109820.0,109810.0,0.1397228]
[1748351306137,2.09717376,109820.0,109810.0,0.22096767]
[1748351306336,2.29626468,109820.0,109810.0,0.22096767]
[1748351306525,2.20520068,109820.0,109810.0,0.1397228]
[1748351307431,2.20520068,109820.0,109810.0,0.22097149]
[1748351308937,2.20520068,109820.0,109810.0,0.09013692]
[1748351310736,2.18315274,109820.0,109810.0,0.19677854]
[1748351311033,2.32454266,109820.0,109810.0,0.1309399]
[1748351311924,2.12545174,109820.0,109810.0,0.1309399]
[1748351312134,2.32454266,109820.0,109810.0,0.1309399]
[1748351312340,2.32454266,109820.0,109810.0,0.13092719]
[1748351312524,3.15837174,109820.0,109810.0,0.13092719]
[1748351312725,3.35762266,109820.0,109810.0,0.13092719]
[1748351312926,2.73897174,109820.0,109810.0,0.14092719]
[1748351313121,2.51826774,109820.0,109810.0,0.1920626]
[1748351313323,0.84484813,109820.0,109810.0,0.86134511]
[1748351313627,0.34691334,109820.0,109810.0,1.32269704]
[1748351313827,0.34691334,109820.0,109810.0,1.71121027]
[1748351313828,0.19363166,109820.0,109810.0,1.71121027]
[1748351314029,0.00136619,109860.0,109840.0,0.0454996]
[1748351314235,0.00136619,109860.0,109850.0,0.42772877]
[1748351314236,1.38054629,109860.0,109850.0,0.42772877]
[1748351314532,0.76302589,109860.0,109850.0,1.24939891]
[1748351314733,0.00148619,109860.0,109850.0,1.44848983]
[1748351314932,0.0005,109870.0,109860.0,0.1819797]
[1748351315133,0.0005,109870.0,109860.0,1.29547581]
[1748351315330,0.2819134,109900.0,109890.0,0.18193]
[1748351315537,0.7018734,109900.0,109890.0,0.81785806]
[1748351315736,0.7518734,109900.0,109890.0,0.58694743]
[1748351316038,0.6427134,109900.0,109890.0,0.79043549]
[1748351316240,0.7318734,109900.0,109890.0,0.78699231]
[1748351316439,0.56992,109900.0,109890.0,0.78599231]
[1748351316736,0.1,109900.0,109890.0,1.14679231]
[1748351316947,0.1,109900.0,109890.0,1.34207794]
[1748351317133,0.10312,109900.0,109890.0,1.36137794]
[1748351317334,0.2849135,109900.0,109890.0,1.36137794]
[1748351317533,0.7048735,109900.0,109890.0,1.36137794]
[1748351317836,0.10312,109900.0,109890.0,1.70237394]
[1748351318228,0.103,109900.0,109890.0,1.70237394]
[1748351318426,0.00136563,109920.0,109910.0,0.1818969]
[1748351318633,0.00136563,109920.0,109910.0,1.77428484]
[1748351318834,0.0005,109930.0,109920.0,0.37716603]
[1748351319030,0.07079499,109950.0,109940.0,0.1818473]
[1748351319031,0.0615,109950.0,109940.0,0.1818473]
[1748351319233,0.6317471,109960.0,109950.0,0.1818307]
[1748351319441,2.33346563,110000.0,109960.0,0.20348806]
[1748351319442,1.20078563,110000.0,109960.0,0.20348806]
[1748351319732,0.10991199,110050.0,109970.0,0.1817977]
[1748351319939,0.3676138,110060.0,110040.0,0.20348806]
[1748351320234,0.11446581,110080.0,110040.0,0.20348806]
[1748351320235,0.31996401,110080.0,110070.0,0.1816325]
[1748351320440,0.31108492,110080.0,110070.0,0.61100619]
[1748351320643,0.16248492,110080.0,110070.0,2.00546856]
[1748351320832,0.00038071,110110.0,110090.0,0.1815994]
[1748351320833,0.13989588,110100.0,110090.0,0.1815994]
[1748351321031,0.48989588,110100.0,110090.0,0.68178254]
[1748351321233,0.32147878,110100.0,110090.0,0.5408]
[1748351321545,0.1815994,110090.0,110080.0,0.36093629]
[1748351321840,0.1816159,110080.0,110070.0,0.002]
[1748351322043,0.5946159,110080.0,110070.0,0.3628]
[1748351322230,0.413,110080.0,110070.0,0.68381554]
[1748351322431,0.243,110080.0,110070.0,0.68381554]
[1748351322631,0.88488358,110120.0,110100.0,0.1815701]
[1748351322932,0.06,110120.0,110110.0,0.67574954]
[1748351323132,0.0602542,110120.0,110110.0,0.49418314]
[1748351323331,0.2737041,110120.0,110100.0,0.36093629]
[1748351323528,0.0319,110110.0,110100.0,0.36093629]
[1748351323733,0.0638,110110.0,110100.0,0.36093629]
[1748351323935,0.0602542,110120.0,110110.0,0.1815662]
[1748351324141,0.0602542,110120.0,110110.0,0.31494934]
[1748351324436,0.0602542,110120.0,110110.0,0.87403497]
[1748351324734,0.0602542,110120.0,110110.0,0.67874934]
[1748351324934,0.0602542,110120.0,110110.0,0.76956534]
[1748351325328,0.0005,110130.0,110120.0,0.1815497]
[1748351325532,0.0005,110130.0,110120.0,0.07324894]
[1748351325731,0.033,110130.0,110120.0,0.43404894]
[1748351326040,0.0653,110130.0,110110.0,0.54672485]
[1748351326248,0.0653,110130.0,110120.0,0.07324894]
[1748351326433,0.0653,110130.0,110120.0,0.25479874]
[1748351326636,0.0005,110130.0,110120.0,0.14024894]
[1748351326834,0.3608,110160.0,110140.0,0.0453778]
[1748351327035,0.0648,110180.0,110160.0,0.1814741]
[1748351327238,0.0648,110180.0,110170.0,0.07274894]
[1748351327542,0.06551998,110180.0,110170.0,0.13274894]
[1748351327750,0.06563998,110180.0,110170.0,0.06]
[1748351327944,0.06551998,110180.0,110170.0,0.06]
[1748351328241,0.00083998,110180.0,110170.0,0.76578034]
[1748351328431,0.3608,110230.0,110220.0,0.1813851]
[1748351328635,0.3608,110260.0,110250.0,0.1813357]
[1748351328838,0.2734,110260.0,110250.0,0.3808]
[1748351329041,0.2734,110260.0,110250.0,0.02]
[1748351329248,0.27352,110260.0,110250.0,0.01]
[1748351329444,0.27352,110260.0,110250.0,0.3708]
[1748351329651,0.27352,110260.0,110250.0,0.3698]
[1748351329942,0.0005,110270.0,110250.0,0.5521292]
[1748351330244,0.1813034,110270.0,110250.0,0.22787564]
[1748351330538,1.0129883,110260.0,110190.0,0.406158]
[1748351330740,0.3608,110230.0,110200.0,0.0453521]
[1748351330941,0.3508,110230.0,110220.0,0.181385]
[1748351331143,0.3608,110240.0,110220.0,0.09]
[1748351331347,0.3608,110230.0,110220.0,0.09]
[1748351331544,0.3608,110240.0,110210.0,0.36093629]
[1748351331545,0.36093629,110240.0,110210.0,0.36093629]
[1748351331841,0.36093629,110240.0,110210.0,0.37093629]
[1748351331842,0.3608,110230.0,110210.0,0.37093629]
[1748351332041,0.3608,110220.0,110210.0,0.00013629]
[1748351332244,0.3608,110220.0,110210.0,0.19153769]
[1748351332542,0.3608,110220.0,110210.0,0.07333629]
[1748351332736,0.3708,110220.0,110210.0,0.07333629]
[1748351332939,0.3708,110220.0,110210.0,0.25473769]
[1748351333535,0.01,110220.0,110210.0,0.25473769]
[1748351333943,0.00013629,110240.0,110230.0,0.1813685]
[1748351334154,0.3608,110260.0,110250.0,0.1813356]
[1748351334340,0.3608,110280.0,110270.0,0.1813027]
[1748351334537,0.42746243,110290.0,110270.0,0.2771027]
[1748351334842,0.3608,110280.0,110270.0,0.0958]
[1748351335043,0.181327,110260.0,110230.0,0.58886938]
[1748351335246,0.5421363,110250.0,110240.0,0.0326]
[1748351335548,0.9354363,110250.0,110240.0,0.03]
[1748351335738,0.7541,110250.0,110240.0,0.03]
[1748351335935,0.3933,110250.0,110240.0,0.2113527]
[1748351336134,0.5746363,110250.0,110240.0,0.0958]
[1748351336335,0.1813527,110240.0,110230.0,0.00149697]
[1748351336550,0.1814021,110210.0,110200.0,0.03456106]
[1748351336739,0.9030021,110210.0,110200.0,0.00136106]
[1748351336942,0.0453546,110200.0,110170.0,0.00136146]
[1748351337144,0.9030515,110180.0,110170.0,0.02136146]
[1748351337352,1.0830515,110180.0,110170.0,0.02136146]
[1748351337535,0.1814679,110170.0,110160.0,0.00013629]
[1748351337846,0.1815034,110150.0,110130.0,0.2444312]
[1748351338060,0.3608,110140.0,110130.0,0.2644295]
[1748351338347,0.3608,110190.0,110160.0,0.0453701]
[1748351338554,0.3708,110190.0,110170.0,0.2440579]
[1748351338854,0.3608,110180.0,110160.0,0.00013629]
[1748351339053,0.3909,110170.0,110160.0,0.19162069]
[1748351339351,0.09097829,110190.0,110180.0,0.1814515]
[1748351339352,0.00025629,110190.0,110180.0,0.1814515]
[1748351339546,0.36105629,110190.0,110180.0,0.1914515]
[1748351339746,0.56093629,110190.0,110180.0,0.01]
[1748351340051,0.1814679,110170.0,110160.0,0.00013629]
[1748351340236,1.0216,110170.0,110160.0,0.01013629]
[1748351340439,0.3,110170.0,110160.0,0.89319268]
[1748351340637,0.3,110170.0,110160.0,1.15178098]
[1748351340835,0.3,110170.0,110160.0,0.89319268]
[1748351341253,0.0906974,110220.0,110160.0,0.62093629]
[1748351341254,0.3608,110220.0,110160.0,0.62093629]
[1748351341550,0.0613,110230.0,110220.0,0.1813856]
[1748351341846,0.4221,110230.0,110220.0,0.1813856]
[1748351342053,0.4221,110230.0,110200.0,0.0907079]
[1748351342054,0.42222,110230.0,110200.0,0.0907079]
[1748351342239,0.42222,110230.0,110210.0,0.136049]
[1748351342240,0.3608,110220.0,110210.0,0.136049]
[1748351342437,0.4221,110220.0,110210.0,0.3627998]
[1748351342644,0.4221,110220.0,110210.0,0.2720996]
[1748351343145,0.42222,110220.0,110210.0,0.2720996]
[1748351343351,0.06142,110220.0,110210.0,0.2267508]
[1748351343554,0.42222,110220.0,110210.0,0.2267508]
[1748351343733,0.06142,110220.0,110210.0,0.2267508]
[1748351344333,0.4675681,110220.0,110200.0,0.00013629]
[1748351344537,0.3608,110210.0,110200.0,0.00013629]
[1748351344745,0.5131,110210.0,110200.0,0.00013629]
[1748351344953,0.6945022,110210.0,110200.0,0.00013629]
[1748351345343,0.1814187,110200.0,110190.0,0.01339692]
[1748351345544,0.7095829,110200.0,110170.0,0.0907327]
[1748351345746,0.3608,110190.0,110180.0,0.3175375]
[1748351346048,0.3608,110190.0,110180.0,0.2314516]
[1748351346049,0.122,110190.0,110180.0,0.2314516]
[1748351346250,0.48292,110190.0,110180.0,0.2314516]
[1748351346755,0.48292,110190.0,110180.0,0.05]
[1748351346756,0.3035551,110190.0,110180.0,0.05]
[1748351346953,0.48292,110190.0,110180.0,0.2314516]
[1748351347150,0.48292,110190.0,110180.0,0.2614516]
[1748351347151,0.12212,110190.0,110180.0,0.2614516]
[1748351347349,0.122,110190.0,110180.0,0.5114516]
[1748351347546,0.12212,110190.0,110180.0,0.5114516]
[1748351348252,0.48292,110190.0,110180.0,0.5114516]
[1748351348456,0.09012,110190.0,110180.0,0.8722516]
[1748351348757,0.1205,110190.0,110180.0,0.2214516]
[1748351348958,0.1527,110190.0,110180.0,0.2214516]
[1748351349150,0.03171593,110190.0,110180.0,1.23890513]
[1748351349347,0.00013629,110200.0,110190.0,0.1814351]
[1748351349550,0.00013629,110200.0,110190.0,0.2421351]
[1748351349753,0.03063629,110200.0,110190.0,0.2421351]
[1748351350055,0.00025629,110200.0,110190.0,0.2421351]
[1748351350254,0.3608,110220.0,110210.0,0.1814022]
[1748351350459,0.3608,110240.0,110230.0,0.1813693]
[1748351350761,0.55393586,110250.0,110240.0,0.1813529]
[1748351350947,0.0453484,110220.0,110190.0,0.5422262]
[1748351351260,0.5422187,110200.0,110190.0,0.00013629]
[1748351351442,0.6122187,110200.0,110190.0,0.00013629]
[1748351351755,0.6122187,110200.0,110170.0,0.0013614]
[1748351351756,0.1814516,110180.0,110170.0,0.0013614]
[1748351351944,1.0030516,110180.0,110170.0,0.07397071]
[1748351352341,0.181501,110150.0,110140.0,0.07444567]
[1748351352559,0.181501,110150.0,110140.0,0.11]
[1748351352560,2.3732172,110150.0,110140.0,0.11]
[1748351352761,2.3732172,110150.0,110130.0,0.00149821]
[1748351352762,0.1815175,110140.0,110130.0,0.00149821]
[1748351352950,0.9223175,110140.0,110130.0,0.10149821]
[1748351353149,1.0131135,110140.0,110130.0,0.05159821]
[1748351353556,0.75452399,110140.0,110130.0,0.23313221]
[1748351354058,1.9517575,110140.0,110130.0,0.05159821]
[1748351354449,1.77024,110140.0,110130.0,0.05159821]
[1748351354656,1.77024,110140.0,110130.0,0.23313221]
[1748351354860,1.40944,110140.0,110130.0,0.26623221]
[1748351355064,1.77024,110140.0,110130.0,0.29843221]
[1748351355360,1.77024,110140.0,110130.0,0.30978245]
[1748351355361,0.38,110140.0,110130.0,0.30978245]
[1748351355549,0.38,110140.0,110130.0,1.00002821]
[1748351355550,0.3379387,110140.0,110130.0,1.00002821]
[1748351355751,0.36093629,110160.0,110150.0,0.1815011]
[1748351355955,0.36093629,110160.0,110150.0,0.2915011]
[1748351355956,0.37093629,110160.0,110150.0,0.2915011]
[1748351356153,0.01013629,110160.0,110150.0,0.6839011]
[1748351356356,0.01013629,110160.0,110150.0,0.6652011]
[1748351357357,0.21013629,110160.0,110150.0,0.6652011]
[1748351357656,0.21013629,110160.0,110150.0,0.7559811]
[1748351357855,0.17946309,110160.0,110150.0,0.7559811]
[1748351358060,0.3621627,110190.0,110180.0,0.1814517]
[1748351358263,0.4638627,110190.0,110180.0,0.2314517]
[1748351358457,0.6774979,110190.0,110180.0,0.05]
[1748351359360,0.6774979,110190.0,110180.0,0.04919345]
[1748351359550,0.7682539,110190.0,110180.0,0.04919345]
[1748351359858,1.1089862,110190.0,110180.0,0.04]
[1748351360164,0.722868,110190.0,110180.0,0.04]
[1748351360456,0.6774979,110190.0,110180.0,0.04]
[1748351360759,0.1814516,110180.0,110170.0,0.00013629]
[1748351360944,0.9031516,110180.0,110170.0,0.07013629]
[1748351362468,0.9032716,110180.0,110170.0,0.07013629]
[1748351363462,0.9032718,110180.0,110170.0,0.07013629]
[1748351363657,0.72182,110180.0,110170.0,0.25160449]
[1748351363963,0.36102,110180.0,110170.0,0.25160449]
[1748351364261,0.36102,110180.0,110170.0,0.67510449]
[1748351364446,0.33,110180.0,110170.0,0.67510449]
[1748351364646,0.33012,110180.0,110170.0,0.67510449]
[1748351364955,0.33012,110180.0,110170.0,0.76586849]
[1748351364956,0.33,110180.0,110170.0,0.76586849]
[1748351365155,0.33012,110180.0,110170.0,0.76586849]
[1748351365360,0.33,110180.0,110170.0,0.76586849]
[1748351365551,0.33012,110180.0,110170.0,0.76586849]
[1748351365753,0.00136233,110220.0,110170.0,0.91697241]
[1748351366063,0.36216233,110220.0,110210.0,0.1814023]
[1748351366262,0.42626233,110220.0,110210.0,0.1814023]
[1748351366473,0.42626233,110220.0,110210.0,0.1927443]
[1748351366955,0.06546233,110220.0,110210.0,0.1814023]
[1748351367356,0.42638233,110220.0,110210.0,0.1814023]
[1748351367559,0.42638233,110220.0,110210.0,0.19274505]
[1748351367771,0.00012,110220.0,110210.0,0.19274505]
[1748351368062,0.00012,110220.0,110210.0,0.55354505]
[1748351368259,0.06293629,110230.0,110220.0,0.181386]
[1748351368451,0.06293629,110230.0,110220.0,0.19272875]
[1748351368650,0.42373629,110230.0,110220.0,0.19272875]
[1748351369068,0.06293629,110230.0,110220.0,0.19272875]
[1748351369260,0.60522579,110230.0,110220.0,0.01134275]
[1748351369458,0.60522579,110230.0,110220.0,0.1813859]
[1748351369761,0.42385629,110230.0,110220.0,0.1813859]
[1748351369965,0.42385629,110230.0,110210.0,0.1360472]
[1748351369966,0.181386,110220.0,110210.0,0.272087]
[1748351370165,0.4692484,110220.0,110200.0,0.14804063]
[1748351370356,0.4239,110210.0,110200.0,0.31761329]
[1748351370663,0.4239,110210.0,110200.0,0.22690639]
[1748351370966,0.6153024,110210.0,110200.0,0.18155519]
[1748351371164,0.6153024,110210.0,110200.0,0.00013629]
[1748351371665,0.7060424,110210.0,110200.0,0.00013629]
[1748351371854,0.6153024,110210.0,110200.0,0.00013629]
[1748351372052,0.6153024,110210.0,110200.0,0.18155519]
[1748351372261,0.6153024,110210.0,110200.0,0.00013629]
[1748351372769,0.1814189,110200.0,110190.0,0.00136125]
[1748351372956,0.6627189,110200.0,110190.0,0.00136125]
[1748351373160,0.4813,110200.0,110190.0,0.18279655]
[1748351373684,0.4508,110200.0,110190.0,0.18279655]
[1748351373969,0.09012,110200.0,110190.0,0.63434455]
[1748351374162,0.09012,110200.0,110190.0,0.66694455]
[1748351374362,0.09,110200.0,110190.0,0.66694455]
[1748351374557,0.0659489,110200.0,110190.0,0.66694455]
[1748351374758,0.0424574,110200.0,110190.0,0.66694455]
[1748351374960,0.00452811,110210.0,110190.0,0.91694455]
[1748351375170,0.47317367,110250.0,110220.0,0.0453465]
[1748351375466,0.14046709,110270.0,110260.0,0.1813202]
[1748351375467,0.50126709,110270.0,110260.0,0.1813202]
[1748351375679,0.1813294,110260.0,110240.0,0.4514711]
[1748351375868,0.181353,110240.0,110220.0,0.48638157]
[1748351376178,0.5421695,110230.0,110220.0,0.08037276]
[1748351376472,0.5421695,110230.0,110220.0,0.19347573]
[1748351376473,0.3911,110230.0,110220.0,0.19347573]
[1748351376667,0.3911,110230.0,110220.0,0.22367573]
[1748351376862,0.3608,110230.0,110220.0,0.19347573]
[1748351377067,0.36092,110230.0,110220.0,0.19347573]
[1748351377370,0.03082,110230.0,110220.0,0.19347573]
[1748351377669,0.03082,110230.0,110220.0,0.21308299]
[1748351377970,0.39162,110230.0,110220.0,0.18288299]
[1748351378467,0.03082,110230.0,110220.0,0.21308299]
[1748351378670,0.03082,110230.0,110220.0,0.56308299]
[1748351378975,0.03082,110230.0,110220.0,0.53288299]
[1748351379763,0.00013629,110240.0,110230.0,0.1813696]
[1748351379970,0.39123629,110240.0,110230.0,0.3913696]
[1748351380177,1.42031629,110240.0,110230.0,0.3913696]
[1748351380380,0.3608,110230.0,110200.0,0.06818925]
[1748351380675,0.3608,110230.0,110130.0,0.0994066]
[1748351380676,0.1815178,110140.0,110130.0,0.0994066]
[1748351380863,0.1815178,110140.0,110110.0,0.05438063]
[1748351380864,0.1815508,110120.0,110110.0,0.05438063]
[1748351381064,0.9416,110120.0,110110.0,0.22007709]
[1748351381275,1.60988,110120.0,110110.0,0.24987709]
[1748351381575,2.07722593,110120.0,110110.0,0.26290022]
[1748351381777,1.7914284,110120.0,110110.0,0.2498]
[1748351382076,0.1815642,110110.0,110100.0,0.10013629]
[1748351382259,0.8923642,110110.0,110100.0,0.36993629]
[1748351382463,0.8723642,110110.0,110100.0,0.45326934]
[1748351382680,0.5423642,110110.0,110100.0,0.11351582]
[1748351382873,0.1816136,110080.0,110070.0,0.22]
[1748351383175,1.419445,110080.0,110070.0,0.22]
[1748351383379,0.7408,110080.0,110070.0,0.22]
[1748351383576,0.7408,110080.0,110070.0,0.40163]
[1748351383873,0.57403449,110090.0,110080.0,0.1816135]
[1748351384074,0.88403329,110090.0,110080.0,0.22]
[1748351384278,0.181613,110080.0,110070.0,0.033]
[1748351384468,0.933913,110080.0,110070.0,0.22]
[1748351384675,0.7523,110080.0,110070.0,0.22]
[1748351384986,0.54253579,110090.0,110080.0,0.181613]
[1748351385183,0.93943489,110090.0,110080.0,0.22]
[1748351385381,0.71243629,110090.0,110080.0,0.401613]
[1748351385576,1.00484549,110090.0,110080.0,0.22]
[1748351385765,1.34568549,110090.0,110080.0,0.22]
[1748351386093,0.1816625,110050.0,110040.0,0.09113796]
[1748351386380,0.1816625,110050.0,110030.0,0.00010186]
[1748351386381,0.2725085,110050.0,110030.0,0.1816927]
[1748351386571,1.9476112,110050.0,110040.0,0.01302961]
[1748351386767,2.3084112,110050.0,110040.0,0.01302961]
[1748351386969,2.3084112,110050.0,110040.0,0.02617927]
[1748351387168,2.3084112,110050.0,110040.0,0.02605298]
[1748351387372,2.3084112,110050.0,110040.0,0.01302961]
[1748351387675,2.08132,110050.0,110040.0,0.04883369]
[1748351387869,2.08132,110050.0,110040.0,0.26231269]
[1748351387870,1.39052,110050.0,110040.0,0.26231269]
[1748351388064,1.39052,110050.0,110040.0,0.26221409]
[1748351388267,0.27260959,110060.0,110050.0,0.1816625]
[1748351388268,0.00013629,110060.0,110050.0,0.1816625]
[1748351388582,0.00013629,110060.0,110050.0,0.5970423]
[1748351388771,0.3608,110080.0,110070.0,0.1816295]
[1748351388972,1.39052,110100.0,110090.0,0.1815974]
[1748351389488,1.39052,110100.0,110080.0,0.2270148]
[1748351389489,1.7959171,110100.0,110080.0,0.2270148]
[1748351389776,0.5423974,110090.0,110080.0,0.02291609]
[1748351389978,0.9248974,110090.0,110080.0,0.00013629]
[1748351390173,0.9560974,110090.0,110080.0,0.00013629]
[1748351390772,0.3933,110090.0,110080.0,0.20453029]
[1748351390974,0.3608,110090.0,110080.0,0.23513029]
[1748351391283,0.3608,110090.0,110080.0,0.59593029]
[1748351391284,0.00439182,110090.0,110080.0,0.59593029]
[1748351391577,0.00439182,110090.0,110080.0,0.23513029]
[1748351391776,0.00439182,110090.0,110080.0,0.59593029]
[1748351392568,2e-08,110090.0,110080.0,0.68677029]
[1748351392775,2e-08,110090.0,110080.0,0.93677029]
[1748351392980,2e-08,110090.0,110080.0,0.95677029]
[1748351393170,0.00013629,110100.0,110090.0,0.1815975]
[1748351393373,0.00013629,110100.0,110090.0,0.63667728]
[1748351393575,0.0332,110130.0,110120.0,0.181548]
[1748351393791,0.0332,110130.0,110120.0,0.45432778]
[1748351393970,0.0332,110130.0,110120.0,0.48582778]
[1748351394283,0.394,110130.0,110120.0,0.45432808]
[1748351394583,0.3608,110130.0,110120.0,0.48582808]
[1748351394887,1.39105629,110140.0,110130.0,0.1815318]
[1748351395083,1.39105629,110140.0,110130.0,0.51431158]
[1748351395269,1.98467159,110140.0,110130.0,0.31]
[1748351395582,1.83605629,110140.0,110130.0,0.4915318]
[1748351395883,1.63757159,110140.0,110130.0,0.4915318]
[1748351396076,1.97757159,110140.0,110130.0,0.31]
[1748351396481,1.45605629,110140.0,110130.0,0.4915318]
[1748351396781,0.00013629,110140.0,110130.0,1.23591158]
[1748351396983,0.00013629,110140.0,110130.0,1.26761158]
[1748351397281,0.00013629,110140.0,110130.0,1.60840758]
[1748351397585,1.1208016,110190.0,110180.0,0.1814493]
[1748351397586,1.6360128,110190.0,110180.0,0.1814493]
[1748351397771,1.9460128,110190.0,110180.0,0.15]
[1748351397971,2.0367688,110190.0,110180.0,0.15]
[1748351398779,1.9460128,110190.0,110180.0,0.15]
[1748351399387,0.34222,110190.0,110180.0,0.35422938]
[1748351399575,0.10013629,110200.0,110190.0,0.1814331]
[1748351399878,0.0632,110230.0,110220.0,0.1813837]
[1748351400072,0.6753673,110230.0,110220.0,0.06]
[1748351400269,0.584724,110230.0,110220.0,0.06]
[1748351400579,0.494,110230.0,110220.0,0.2413837]
[1748351400781,0.49412,110230.0,110220.0,0.06]
[1748351400972,1.01621,110230.0,110220.0,0.06]
[1748351401174,0.0906948,110220.0,110190.0,0.08]
[1748351401376,0.4241,110210.0,110200.0,0.1814154]
[1748351401579,0.7041,110210.0,110200.0,0.30419518]
[1748351401880,0.3433,110210.0,110200.0,0.3125154]
[1748351402080,0.3433,110210.0,110200.0,0.33529518]
[1748351402273,0.28,110210.0,110200.0,0.36809518]
[1748351402476,0.28012,110210.0,110200.0,0.36809518]
[1748351402880,0.28,110210.0,110200.0,0.36809518]
[1748351403182,0.64092,110210.0,110200.0,0.33529498]
[1748351403386,0.70402,110210.0,110200.0,0.33529498]
[1748351403884,0.70402,110210.0,110200.0,0.69609498]
[1748351403885,0.28012,110210.0,110200.0,0.69609498]
[1748351404080,9e-08,110220.0,110210.0,0.20417868]
[1748351404280,9e-08,110220.0,110210.0,0.69707868]
[1748351404580,0.00012009,110220.0,110210.0,0.69707868]
[1748351405286,9e-08,110220.0,110210.0,0.69707868]
[1748351405584,1e-08,110230.0,110220.0,0.20416228]
[1748351405886,1e-08,110230.0,110220.0,0.68846228]
[1748351406072,0.00012001,110230.0,110220.0,0.68846228]
[1748351406273,0.0317,110260.0,110250.0,0.1813332]
[1748351406474,0.00013629,110270.0,110260.0,0.1813168]
[1748351406680,0.00013629,110270.0,110260.0,0.59739658]
[1748351406882,0.00013629,110270.0,110260.0,0.62839658]
[1748351407075,0.00025629,110270.0,110260.0,0.62839658]
[1748351407382,0.00013629,110270.0,110260.0,0.62839658]
[1748351407588,0.00025629,110270.0,110260.0,0.62839658]
[1748351407770,0.00013629,110270.0,110260.0,0.62839658]
[1748351407976,0.00025629,110270.0,110260.0,0.62839658]
[1748351410588,0.00025629,110270.0,110260.0,0.97839658]
[1748351411282,0.105,110300.0,110290.0,0.1812673]
[1748351411486,0.1692,110300.0,110290.0,0.43404708]
[1748351411681,0.53,110300.0,110290.0,0.2616]
[1748351411882,0.53,110300.0,110290.0,0.1812673]
[1748351412187,0.4658,110300.0,110290.0,0.1812673]
[1748351412391,0.497,110300.0,110290.0,0.1812673]
[1748351412576,0.53,110300.0,110290.0,0.1812673]
[1748351412771,0.53012,110300.0,110290.0,0.1812673]
[1748351413284,0.53,110300.0,110290.0,0.23564708]
[1748351413479,0.16932,110300.0,110290.0,0.23564708]
[1748351413683,0.1692,110300.0,110290.0,0.26874708]
[1748351414079,0.10512,110300.0,110290.0,0.26874708]
[1748351414292,0.105,110300.0,110290.0,0.62954708]
[1748351414589,0.10512,110300.0,110290.0,0.08747978]
[1748351414794,0.10512,110300.0,110290.0,0.26874708]
[1748351414795,0.105,110300.0,110290.0,0.26874708]
[1748351414982,0.10512,110300.0,110290.0,0.26874708]
[1748351415387,0.10512,110300.0,110290.0,0.2128673]
[1748351415583,0.16702,110300.0,110290.0,0.1812673]
[1748351415790,0.16702,110300.0,110290.0,0.1812676]
[1748351415986,0.52782,110300.0,110290.0,0.1812676]
[1748351416288,0.16702,110300.0,110290.0,0.20404738]
[1748351416590,0.16702,110300.0,110290.0,0.23514738]
[1748351416786,0.1669,110300.0,110290.0,0.26824738]
[1748351416987,0.16702,110300.0,110290.0,0.26824738]
[1748351417196,0.105,110300.0,110290.0,0.26824738]
[1748351418298,0.499,110300.0,110290.0,0.26824738]
[1748351418482,0.1382,110300.0,110290.0,0.2454676]
[1748351418789,0.4782,110300.0,110290.0,0.2123676]
[1748351418983,0.839,110300.0,110290.0,0.23514738]
[1748351419186,0.4782,110300.0,110290.0,0.26824738]
[1748351419390,0.47832,110300.0,110290.0,0.26824738]
[1748351419590,0.44951182,110300.0,110290.0,0.26824738]
[1748351419784,0.45951182,110300.0,110290.0,0.27824738]
[1748351420095,0.48951182,110300.0,110290.0,0.38824738]
[1748351420300,0.48951182,110300.0,110290.0,0.39824738]
[1748351420495,0.46951182,110300.0,110290.0,0.75904738]
[1748351420802,0.36266122,110330.0,110310.0,0.0453075]
[1748351421089,0.0317,110320.0,110310.0,0.90889429]
[1748351421289,0.39356122,110330.0,110320.0,0.20399818]
[1748351421496,0.36266122,110330.0,110320.0,0.38479818]
[1748351421795,0.0005,110330.0,110320.0,0.74559818]
[1748351422095,0.0005,110330.0,110320.0,0.3620184]
[1748351422096,0.36142,110330.0,110320.0,0.3620184]
[1748351422282,0.36142,110330.0,110320.0,0.50479818]
[1748351422283,0.00062,110330.0,110320.0,0.50479818]
[1748351422796,0.0631,110330.0,110320.0,0.50479818]
[1748351423091,0.03232,110330.0,110320.0,0.50479818]
[1748351423484,1e-07,110330.0,110320.0,0.86559818]
[1748351423799,0.4241,110350.0,110340.0,0.1811855]
[1748351423983,0.7341,110350.0,110340.0,0.33396528]
[1748351424389,0.7341,110350.0,110340.0,0.3111855]
[1748351424693,0.7941,110350.0,110340.0,0.13]
[1748351424997,2.09429301,110350.0,110340.0,0.13]